Workbook

Sheet Changelog
A1: No. | B1: Sheet | C1: Cell | D1: Changes
A2: 1 | B2: Inputs | C2: C19:G19 | D2: Updated nominal building block revenue from PTRM
A3: 2 | B3: Inputs | C3: C28:G28 | D3: Removed competitve westbound demand
A4: 3 | B4: Inputs | C4: C33:G33 | D4: Removed westbound set prices
A5: 4 | B5: Inputs | C5: C39 | D5: Updated forecast inflation
A6: 5 | B6: Inputs | C6: C42:G43 | D6: Expanded WACC section to allow for annual changes in the WACC and formed an index
A7: 6 | B7: Calculations | C7: C52:G52 | D7: Updated real smoothed revenue from PTRM
A8: 7 | B8: Calculations | C8: C21, C45, C67 | D8: Updated P0
A9: 8 | B9: Calculations | C9: I16, I19, I27, I36, I39, I41, I53, I58, I61, I63, I73, I74 | D9: Updated formula to take into account annual changes in the WACC
A10: 9 | B10: Inputs | C10: P24:T24 | D10: Amended Eastbound demand inputs (consistent with revised proposed demand)
A11: 10 | B11: Calculations | C11: C18:G18 | D11: Formula to convert total demand volumes (calculated values are consistent with values in revised proposed tariff model)
A12: 11 | B12: Calculations | C12: C40:G40 | D12: Formula to convert eastbound demand volumes (calculated values are consistent with values in revised proposed tariff model)
A13: 12 | B13: Calculations | C13: C41:G41 | D13: Formula to calculate eastbound smoothed revenue from tariffs and demand
A14: 13 | B14: Calculations | C14: C64:G64 | D14: Formula to calculate westbound reference tariff
A15: 14 | B15: Calculations | C15: C73:G73 | D15: Formula to calculate total smoothed revenue referencing eastbound and westbound revenue
A16: 15 | B16: Outputs | C16: C9:G9 | D16: Formula to reference westbound reference tariff
A17: 16 | B17: Outputs | C17: D33:H33 | D17: Formula to calculate total smoothed revenue
A18: 17 | B18: Outputs | C18: D35:H35 | D18: Formula to reference eastbound reference tariff
A19: 18 | B19: Outputs | C19: D39:H39 D41:H41 D43:H43 | D19: Further amendments to revenue outputs
A20: 19 | B20: Outputs | C20: D49:H49 | D20: Formula to convert to reference the real revenue input (in $million) and convert to $'0s.
A21: 20 | B21: Proof Prudent Discount | C21: entire sheet | D21: Removed sheet as not applicable
A24: AER amendments are highligted in green

Sheet Inputs
A11: Roma Brisbane Pipeline
A12: Reference Tariff Model
A14: Item | B14: Dollars | C14: FY2023 | D14: FY2024 | E14: FY2025 | F14: FY2026 | G14: FY2027
A17: Building Block Revenue
A19: Building Block Revenue from PTRM | B19: Forecast Nom | C19: 43.16824346 | D19: 46.52832079 | E19: 49.62023529 | F19: 52.26889725 | G19: 50.12059977
A21: Demand | P21: 2022-23 | Q21: 2023-24 | R21: 2024-25 | S21: 2025-26 | T21: 2026-27
O22: Eastbound (non GPG)
A23: Eastbound C&I | B23: TJ MDQ/Day | O23: GPG
A24: GPG | B24: TJ MDQ/Day | O24: Total Eastbound | P24: 126.2 | Q24: 105.7 | R24: 104.2 | S24: 104.2 | T24: 104.2
A25: Prudent Discount | B25: TJ MDQ/Day | C25: 0 | D25: =C25 -> 0 | E25: 0 | F25: 0 | G25: 0 | O25: Westbound | P25: 93.7 | Q25: 93.7 | R25: 92.7 | S25: 87.7 | T25: 87.7
A26: Prudent Discount Volumes | B26: GJ | C26: 0 | D26: =C26 -> 0 | E26: 0 | F26: 0 | G26: 0 | O26: Total | P26: =SUM(P24:P25) -> 219.9 | Q26: =SUM(Q24:Q25) -> 199.4 | R26: 196.9 | S26: 191.9 | T26: 191.9
A27: Westbound | B27: TJ MDQ/Day
A28: Competitive Westbound | B28: TJ MDQ/Day
A29: Total Westbound | B29: TJ MDQ/Day | C29: =P25 -> 93.7 | D29: =Q25 -> 93.7 | E29: 92.7 | F29: 87.7 | G29: 87.7
A31: Set Prices
A33: Westbound | B33: $/GJ MDQ/Day | O33: Darling Downs | P33: 2020-21
A34: Prudent Discount | B34: $/GJ MDQ/Day | C34: 0 | D34: =C34 -> 0 | E34: 0 | F34: 0 | G34: 0 | O34: DDP 134 | P34: 0.2195
A35: Prudent Discount | B35: $/GJ | C35: 0 | D35: =C35 -> 0 | E35: 0 | F35: 0 | G35: 0 | O35: DDP 133 | P35: 0.1004
A37: Other inputs | C37: FY2022
A39: CPI | C39: 0.02649953986
A40: $FY22 index | C40: =1*(1+C39) -> 1.02649954 | D40: =C40*(1+FY22Inf) -> 1.053701305 | E40: =D40*(1+FY22Inf) -> 1.081623905 | F40: =E40*(1+FY22Inf) -> 1.110286441 | G40: =F40*(1+FY22Inf) -> 1.139708521
A42: WACC | B42: nominal vanilla | C42: 0.04815994656 | D42: 0.0477786879 | E42: 0.04739742924 | F42: 0.04701617059 | G42: 0.04663491193
C43: =1*(1+C42) -> 1.048159947 | D43: =C43*(1+D42) -> 1.098239654 | E43: =D43*(1+E42) -> 1.15029339 | F43: 1.20437578 | G43: 1.260541738
A44: Days in Year | B44: days | C44: 365 | D44: 366 | E44: 365 | F44: 365 | G44: 365
A46: Terajoule | B46: GJ | C46: 1000 | D46: 1000 | E46: 1000 | F46: 1000 | G46: 1000
A48: FY 2022 Forecast Revenue | B48: $FY22 | C48: 42.3546
A50: Reference tariff | B50: $FY22 | C50: 0.58019201
A52: Real Revenue from PTRM | B52: $FY22 | C52: 48.9478309 | D52: 44.50631082 | E52: 43.82823058 | F52: 42.71527399 | G52: 42.71527399

Sheet Calculations
A11: Roma Brisbane Pipeline
A12: Reference Tariff Model
A14: Item | B14: Dollars | C14: FY2023 | D14: FY2024 | E14: FY2025 | F14: FY2026 | G14: FY2027 | I14: NPV
A16: Building Block Revenue | B16: =Inputs!B19 -> Forecast Nom | C16: =Inputs!C19 -> 43.16824346 | D16: =Inputs!D19 -> 46.52832079 | E16: =Inputs!E19 -> 49.62023529 | F16: =Inputs!F19 -> 52.26889725 | G16: =Inputs!G19 -> 50.12059977 | I16: =(C16/Inputs!C$43+D16/Inputs!D$43+E16/Inputs!E$43+F16/Inputs!F$43+G16/Inputs!G$43) -> 209.8484032
A18: Total Volumes | B18: GJ MDQ/year | C18: =Inputs!P26*Inputs!C44*Inputs!C46 -> 80263500 | D18: =Inputs!Q26*Inputs!D44*Inputs!D46 -> 72980400 | E18: =Inputs!R26*Inputs!E44*Inputs!E46 -> 71868500 | F18: =Inputs!S26*Inputs!F44*Inputs!F46 -> 70043500 | G18: =Inputs!T26*Inputs!G44*Inputs!G46 -> 70043500
A19: Smoothed Revenue | C19: =C18*C20/1000000 -> 50.2449259 | D19: =D18*D20/1000000 -> 46.89635781 | E19: 47.40566191 | F19: 47.42618953 | G19: 48.68296173 | I19: =(C19/Inputs!C$43+D19/Inputs!D$43+E19/Inputs!E$43+F19/Inputs!F$43+G19/Inputs!G$43) -> 209.8484032
A20: Reference tariff | C20: =FY22RefTariff*(1-C21/100)*(1+FY22Inf) -> 0.6259996873 | D20: =C20*(1-D21/100)*(1+FY22Inf) -> 0.6425883909 | E20: =D20*(1-E21/100)*(1+FY22Inf) -> 0.6596166876 | F20: =E20*(1-F21/100)*(1+FY22Inf) -> 0.6770962263 | G20: =F20*(1-G21/100)*(1+FY22Inf) -> 0.6950389648
A21: "Vanilla" X factor | C21: -5.109897735 | D21: 0 | E21: =D21 -> 0 | F21: 0 | G21: 0 | I21: =I16-I19 -> 0
C23: =C16-C19 -> -7.076682441
A25: Eastbound
A26: EastBound Volumes | B26: GJ MDQ/year | C26: 46063000 | D26: 38686200 | E26: 38033000 | F26: 38033000 | G26: 38033000
A27: Eastbound Revenues | C27: =C20*C26/1000000 -> 28.83542359 | D27: =D20*D26/1000000 -> 24.85930301 | E27: =E20*E26/1000000 -> 25.08720148 | F27: =F20*F26/1000000 -> 25.75200078 | G27: =G20*G26/1000000 -> 26.43441695 | I27: =(C27/Inputs!C$43+D27/Inputs!D$43+E27/Inputs!E$43+F27/Inputs!F$43+G27/Inputs!G$43) -> 114.3082138
A29: Eastbound Prudent Discount
A30: Prudent Discount Firm Demand | B30: =B18 -> GJ MDQ/year | C30: =Inputs!C25*Inputs!C44*Inputs!C46 -> 0 | D30: =Inputs!D25*Inputs!D44*Inputs!D46 -> 0 | E30: =Inputs!E25*Inputs!E44*Inputs!E46 -> 0 | F30: =Inputs!F25*Inputs!F44*Inputs!F46 -> 0 | G30: =Inputs!G25*Inputs!G44*Inputs!G46 -> 0
A31: Prudent Discount Volume Revenue | B31: =Inputs!B26 -> GJ | C31: =Inputs!C26 -> 0 | D31: =Inputs!D26 -> 0 | E31: =Inputs!E26 -> 0 | F31: =Inputs!F26 -> 0 | G31: =Inputs!G26 -> 0
A33: Prudent Discount Firm Tariff | B33: =Inputs!B34 -> $/GJ MDQ/Day | C33: =Inputs!C34 -> 0 | D33: =Inputs!D34 -> 0 | E33: =Inputs!E34 -> 0 | F33: =Inputs!F34 -> 0 | G33: =Inputs!G34 -> 0
A34: Prudent Discount Volume tariff | B34: =Inputs!B35 -> $/GJ | C34: =Inputs!C35 -> 0 | D34: =Inputs!D35 -> 0 | E34: =Inputs!E35 -> 0 | F34: =Inputs!F35 -> 0 | G34: =Inputs!G35 -> 0
A36: Prudent Discount Revenue | B36: $m | C36: =(C30*C33+C31*C34)/1000000 -> 0 | D36: =(D30*D33+D31*D34)/1000000 -> 0 | E36: 0 | F36: 0 | G36: 0 | I36: =(C36/Inputs!C$43+D36/Inputs!D$43+E36/Inputs!E$43+F36/Inputs!F$43+G36/Inputs!G$43) -> 0
A38: Eastbound Reference Tariff
A39: Reference Revenue Eastbound | B39: =B36 -> $m | C39: =C27-C36 -> 28.83542359 | D39: =D27-D36 -> 24.85930301 | E39: =E27-E36 -> 25.08720148 | F39: =F27-F36 -> 25.75200078 | G39: =G27-G36 -> 26.43441695 | I39: =(C39/Inputs!C$43+D39/Inputs!D$43+E39/Inputs!E$43+F39/Inputs!F$43+G39/Inputs!G$43) -> 114.3082138
A40: Non Discount Demand | B40: =B30 -> GJ MDQ/year | C40: =Inputs!P24*Inputs!C44*Inputs!C46 -> 46063000 | D40: =Inputs!Q24*Inputs!D44*Inputs!D46 -> 38686200 | E40: =Inputs!R24*Inputs!E44*Inputs!E46 -> 38033000 | F40: =Inputs!S24*Inputs!F44*Inputs!F46 -> 38033000 | G40: =Inputs!T24*Inputs!G44*Inputs!G46 -> 38033000
A41: Eastbound smoothed reference service | B41: =B39 -> $m | C41: =C42*C40/1000000 -> 28.83542359 | D41: =D42*D40/1000000 -> 24.85930301 | E41: =E42*E40/1000000 -> 25.08720148 | F41: 25.75200078 | G41: 26.43441695 | I41: =(C41/Inputs!C$43+D41/Inputs!D$43+E41/Inputs!E$43+F41/Inputs!F$43+G41/Inputs!G$43) -> 114.3082138
A42: Eastbound reference tariff | C42: =FY22RefTariff*(1-C45/100)*(1+FY22Inf) -> 0.6259996873 | D42: =C42*(1-D45/100)*(1+FY22Inf) -> 0.6425883909 | E42: =D42*(1-E45/100)*(1+FY22Inf) -> 0.6596166876 | F42: =E42*(1-F45/100)*(1+FY22Inf) -> 0.6770962263 | G42: =F42*(1-G45/100)*(1+FY22Inf) -> 0.6950389648
C44: P0 | D44: X1 | E44: X2 | F44: X3 | G44: X4
A45: Eastbound X factor | C45: -5.109897735 | D45: 0 | E45: =D45 -> 0 | F45: 0 | G45: 0 | I45: =I39-I41 -> 0
A47: Residual in year 1 | C47: =C27-C41-C36 -> 0 | D47: =D27-D41-D36 -> 0 | E47: 0 | F47: 0 | G47: 0
A51: Westbound
A52: WestBound Volumes | B52: GJ MDQ/year | C52: =Inputs!C29*Inputs!C44*Inputs!C46 -> 34200500 | D52: =Inputs!D29*Inputs!D44*Inputs!D46 -> 34294200 | E52: =Inputs!E29*Inputs!E44*Inputs!E46 -> 33835500 | F52: =Inputs!F29*Inputs!F44*Inputs!F46 -> 32010500 | G52: =Inputs!G29*Inputs!G44*Inputs!G46 -> 32010500
A53: Westbound Revenues | C53: =C52*C20/1000000 -> 21.4095023 | D53: =D52*D20/1000000 -> 22.0370548 | E53: =E52*E20/1000000 -> 22.31846043 | F53: =F52*F20/1000000 -> 21.67418875 | G53: =G52*G20/1000000 -> 22.24854478 | I53: =(C53/Inputs!C$43+D53/Inputs!D$43+E53/Inputs!E$43+F53/Inputs!F$43+G53/Inputs!G$43) -> 95.54018942
A55: Westbound Prudent Discount
A56: =Inputs!A34 -> Prudent Discount | B56: =Inputs!B34 -> $/GJ MDQ/Day
A57: Prudent Discount Firm Demand | B57: =B30 -> GJ MDQ/year
A58: Prudent Discount Revenue | B58: $m
A60: Westbound Reference Tariff
A61: Remaining Building Block Revenue | B61: =B58 -> $m
A62: Non Discount Demand | B62: GJ MDQ/year
A63: Westbound Revenue | B63: =B58 -> $m
A64: Westbound Reference Tariff | B64: $/GJ MDQ/Day | C64: =FY22RefTariff*(1-Calculations!C67/100)*(1+FY22Inf) -> 0.6259996873 | D64: =C64*(1-Calculations!D67/100)*(1+FY22Inf) -> 0.6425883909 | E64: =D64*(1-Calculations!E67/100)*(1+FY22Inf) -> 0.6596166876 | F64: =E64*(1-Calculations!F67/100)*(1+FY22Inf) -> 0.6770962263 | G64: =F64*(1-Calculations!G67/100)*(1+FY22Inf) -> 0.6950389648 | I64: 0
C66: P0 | D66: X1 | E66: X2 | F66: X3 | G66: X4
A67: Westbound X factors | C67: -5.109897735 | D67: 0 | E67: =D67 -> 0 | F67: 0 | G67: 0
A69: Residual in year 1 | C69: =C53-C58-C63 -> 21.4095023 | D69: =D53-D58-D63 -> 22.0370548 | E69: =E53-E58-E63 -> 22.31846043 | F69: =F53-F58-F63 -> 21.67418875 | G69: =G53-G58-G63 -> 22.24854478
A72: Proof
A73: Smoothed | B73: =B63 -> $m | C73: =SUM(C27,C53) -> 50.2449259 | D73: =SUM(D27,D53) -> 46.89635781 | E73: 47.40566191 | F73: 47.42618953 | G73: 48.68296173 | I73: =(C73/Inputs!C$43+D73/Inputs!D$43+E73/Inputs!E$43+F73/Inputs!F$43+G73/Inputs!G$43) -> 209.8484032
A74: =A16 -> Building Block Revenue | B74: Forecast Nom | C74: 43.16824346 | D74: 46.52832079 | E74: 49.62023529 | F74: 52.26889725 | G74: 50.12059977 | I74: =(C74/Inputs!C$43+D74/Inputs!D$43+E74/Inputs!E$43+F74/Inputs!F$43+G74/Inputs!G$43) -> 209.8484032
I75: =I73-I74 -> 0

Sheet Outputs
B1: X Factors
B2: Reference Service | C2: =Calculations!C66 -> P0 | D2: =Calculations!D66 -> X1 | E2: =Calculations!E66 -> X2 | F2: =Calculations!F66 -> X3 | G2: =Calculations!G66 -> X4
B3: =Calculations!A45 -> Eastbound X factor | C3: =Calculations!C45 -> -5.109897735 | D3: =Calculations!D45 -> 0 | E3: =Calculations!E45 -> 0 | F3: =Calculations!F45 -> 0 | G3: =Calculations!G45 -> 0
B4: =Calculations!A67 -> Westbound X factors | C4: =Calculations!C67 -> -5.109897735 | D4: =Calculations!D67 -> 0 | E4: =Calculations!E67 -> 0 | F4: =Calculations!F67 -> 0 | G4: =Calculations!G67 -> 0
B6: Forecast Reference Tariff (Nominal)
B7: Service | C7: FY23 | D7: FY24 | E7: FY25 | F7: FY26 | G7: FY27
B8: Eastbound Long Term Firm Service | C8: =ROUND(Calculations!C42,4) -> 0.626 | D8: =ROUND(Calculations!D42,4) -> 0.6426 | E8: =ROUND(Calculations!E42,4) -> 0.6596 | F8: =ROUND(Calculations!F42,4) -> 0.6771 | G8: =ROUND(Calculations!G42,4) -> 0.695
B9: Westbound Long Term Firm Service | C9: =ROUND(Calculations!C64,4) -> 0.626 | D9: =ROUND(Calculations!D64,4) -> 0.6426 | E9: =ROUND(Calculations!E64,4) -> 0.6596 | F9: =ROUND(Calculations!F64,4) -> 0.6771 | G9: =ROUND(Calculations!G64,4) -> 0.695
B11: Forecast Reference Tariff (Real)
B12: Service | C12: FY23 | D12: FY24 | E12: FY25 | F12: FY26 | G12: FY27
B13: Eastbound Long Term Firm Service | C13: =ROUND(C8/Inputs!C$40,4) -> 0.6098 | D13: =ROUND(D8/Inputs!D$40,4) -> 0.6099 | E13: =ROUND(E8/Inputs!E$40,4) -> 0.6098 | F13: =ROUND(F8/Inputs!F$40,4) -> 0.6098 | G13: =ROUND(G8/Inputs!G$40,4) -> 0.6098
B14: Westbound Long Term Firm Service | C14: =ROUND(C9/Inputs!C$40,4) -> 0.6098 | D14: =ROUND(D9/Inputs!D$40,4) -> 0.6099 | E14: =ROUND(E9/Inputs!E$40,4) -> 0.6098 | F14: =ROUND(F9/Inputs!F$40,4) -> 0.6098 | G14: =ROUND(G9/Inputs!G$40,4) -> 0.6098
B17: Demand (Confidential) | J17: Demand (Public)
B19: Component (TJ MDW/Day) | C19: FY23 | D19: FY24 | E19: FY25 | F19: FY26 | G19: FY27 | J19: Component | K19: FY23 | L19: FY24 | M19: FY25 | N19: FY26 | O19: FY27
B20: =Inputs!A27 -> Westbound | J20: =B20 -> Westbound | K20: 93.7 | L20: 93.7 | M20: 92.7 | N20: 87.7 | O20: 87.7
B21: =Inputs!A28 -> Competitive Westbound | J21: =B24 -> Eastbound | K21: 126.2 | L21: 105.7 | M21: 104.2 | N21: 104.2 | O21: 104.2
B22: GPG | J22: =B25 -> Total | K22: =SUM(K20:K21) -> 219.9 | L22: =SUM(L20:L21) -> 199.4 | M22: =SUM(M20:M21) -> 196.9 | N22: =SUM(N20:N21) -> 191.9 | O22: =SUM(O20:O21) -> 191.9
B23: =Inputs!A25 -> Prudent Discount
B24: Eastbound | J24: Demand (Public)
B25: Total | C25: 219.9 | D25: 199.4 | E25: 196.9 | F25: 191.9 | G25: 191.9
J26: Component | K26: FY23 | L26: FY24 | M26: FY25 | N26: FY26 | O26: FY27
J27: =J21 -> Eastbound | K27: =K21 -> 126.2 | L27: =L21 -> 105.7 | M27: 104.2 | N27: 104.2 | O27: 104.2
B28: Revenue | D28: FY23 | E28: FY24 | F28: FY25 | G28: FY26 | H28: FY27
B29: Eastbound Prudent Discount Revenue | C29: =Calculations!B36 -> $m | D29: =Calculations!C36 -> 0 | E29: =Calculations!D36 -> 0 | F29: =Calculations!E36 -> 0 | G29: =Calculations!F36 -> 0 | H29: =Calculations!G36 -> 0
B30: =Calculations!A41 -> Eastbound smoothed reference service | C30: =Calculations!B41 -> $m | D30: =Calculations!C41 -> 28.83542359 | E30: =Calculations!D41 -> 24.85930301 | F30: =Calculations!E41 -> 25.08720148 | G30: =Calculations!F41 -> 25.75200078 | H30: =Calculations!G41 -> 26.43441695
B31: Westbound Prudent Discount Revenue | C31: =Calculations!B58 -> $m
B32: =Calculations!A63 -> Westbound Revenue | C32: =Calculations!B63 -> $m
B33: Total "smoothed" Revenue | C33: $m | D33: =Calculations!C73 -> 50.2449259 | E33: =Calculations!D73 -> 46.89635781 | F33: =Calculations!E73 -> 47.40566191 | G33: =Calculations!F73 -> 47.42618953 | H33: =Calculations!G73 -> 48.68296173
B35: Eastbound Reference Tariff | C35: $GJ MDQ | D35: =Calculations!C42 -> 0.6259996873 | E35: =Calculations!D42 -> 0.6425883909 | F35: =Calculations!E42 -> 0.6596166876 | G35: =Calculations!F42 -> 0.6770962263 | H35: =Calculations!G42 -> 0.6950389648
B36: GPG Volumes | C36: GJ MDQ PA
B37: GPG Revenue
B39: Other East bound Revenue | C39: $m
B41: Westbound Revenue | C41: $m | D41: =Calculations!C53 -> 21.4095023 | E41: =Calculations!D53 -> 22.0370548 | F41: =Calculations!E53 -> 22.31846043 | G41: =Calculations!F53 -> 21.67418875 | H41: =Calculations!G53 -> 22.24854478
B43: Total Revenue | D43: =D30+D41 -> 50.2449259 | E43: =E30+E41 -> 46.89635781 | F43: 47.40566191 | G43: 47.42618953 | H43: 48.68296173
B46: Real Revenue ($FY22)
B48: Revenue | D48: =D28 -> FY23 | E48: =E28 -> FY24 | F48: FY25 | G48: FY26 | H48: FY27
B49: Revenue | D49: =Inputs!C52*1000000 -> 48947830.9 | E49: =Inputs!D52*1000000 -> 44506310.82 | F49: =Inputs!E52*1000000 -> 43828230.58 | G49: =Inputs!F52*1000000 -> 42715273.99 | H49: =Inputs!G52*1000000 -> 42715273.99
B51: RIN Total | D51: 41535152.48 | E51: 42145631.83 | F51: 42010595.99 | G51: 43847765.26 | H51: 47202597.74
D53: =D49-D51 -> 7412678.424 | E53: =E49-E51 -> 2360678.992 | F53: 1817634.589 | G53: -1132491.267 | H53: -4487323.752
